Cogmind - Beta 11.1 @@@ ROGUE MODE // 2022.11.10 @ 18:59:36 Player: Edelens Result: Destroyed by G-34 Mercenary with Small Laser Performance ------------- Evolutions (0) 0 Regions Visited (1) 200 Robots Destroyed (10) 50 Value Destroyed (171) 171 Prototype IDs (0) 0 Alien Tech Used (0) 0 Bonus (0) 0 TOTAL SCORE: 421 Bonus ------- None Cogmind --------- Core Integrity 0/250 Matter 195/500 Energy 125/125 System Corruption 0% Temperature Cool (15) Movement Treading (480) Ox4 Location -10/Materials Parts ------- > --- POWER (1) -------- Light Ion Engine > --- PROPULSION (2) --- Light Treads Aluminum Leg > --- UTILITY (2) ------ Huge Storage Unit High-capacity Matter Pod > --- WEAPON (2) ------- (None) > --- INVENTORY (25) --- Light Ion Engine Light Ion Engine Light Ion Engine Light Ion Engine Light Ion Engine Light Ion Engine Heat Sink High-capacity Storage Unit Signal Interpreter Peak State ------------ > --- POWER ------------ Light Ion Engine > --- PROPULSION ------- Wheel Wheel > --- UTILITY ---------- High-capacity Matter Pod > --- WEAPON ----------- Assault Rifle Light Assault Rifle > --- INVENTORY -------- Signal Interpreter Grenade Launcher [Rating: 6] Favorites ----------- Power Light Ion Engine Engine Light Ion Engine Propulsion Aluminum Leg Treads Light Treads Leg Aluminum Leg Wheel Wheel Hover Unit Hover Unit Utility High-capacity Matter Pod Storage High-capacity Matter Pod Weapon Light Assault Rifle Ballistic Gun Light Assault Rifle Launcher Grenade Launcher Build | -11 -10 ------- Run | Scr Mat Slots Evolved . | . . Power . | . . Propulsion . | . . Utility . | . . Weapon . | . . Parts Attached 13 | 5 8 Power 3 | 1 2 Engine 3 | 1 2 Core . | . . Reactor . | . . Propulsion 5 | 2 3 Treads 1 | . 1 Leg 1 | . 1 Wheel 2 | 2 . Hover 1 | . 1 Flight . | . . Utility 2 | . 2 Device . | . . Storage 2 | . 2 Processor . | . . Hackware . | . . Protection . | . . Artifact . | . . Weapon 3 | 2 1 Energy Gun . | . . Energy Cannon . | . . Ballistic Gun 2 | 2 . Ballistic Cannon . | . . Launcher 1 | . 1 Special Weapon . | . . Impact Weapon . | . . Slashing Weapon . | . . Piercing Weapon . | . . Special Melee Weapon . | . . Unidentified Prototypes . | . . Parts Lost 7 | . 7 Power 1 | . 1 Propulsion 3 | . 3 Utility . | . . Weapon 3 | . 3 Highest Loss Streak 3 | . 3 To Critical Strikes . | . . Average Slot Usage (%) 67 | . 67 Engine 10 | . 10 Treads 1 | . 1 Leg 6 | . 6 Wheel 1 | . 1 Hover 1 | . 1 Storage 25 | . 25 Ballistic Gun 15 | . 15 Launcher 4 | . 4 Naked Turns . | . . Heaviest Build 91 | 6 91 Greatest Support 20 | 20 20 Greatest Overweight (x) 30 | . 30 Average Overweight (x) 4 | . 5 Largest Inventory Capacity 25 | 5 25 Average Capacity 20 | 5 21 Most Carried 9 | 5 9 Average Carried 3 | 2 4 Final Capacity 25 | 5 25 Final Carried 9 | 5 9 Class Distribution -------------------- 100% | Mutant Dominant Class ---------------- Mutant | -10/Materials Resources | -11 -10 ----------- Run | Scr Mat Matter Collected 357 | 278 79 Remotely . | . . Salvage Created 154 | 59 95 Parts 16 | 6 10 Haulers Intercepted . | . . Recyclers Shooed . | . . Parts Field Recycled . | . . Retrieved Matter . | . . Parts Self-Destructed . | . . Prevented . | . . Kills | -11 -10 ------- Run | Scr Mat Combat Hostiles Destroyed 6 | 1 5 Guns 4 | 1 3 AOE 2 | . 2 Classes Destroyed 6 | 2 4 Worker 1 | . 1 Builder 1 | . 1 Tunneler 1 | 1 . Operator 1 | . 1 Swarmer 3 | . 3 Grunt 3 | 1 2 Best Kill Streak 3 | 2 3 Combat Bots Only 2 | 1 2 Max Kills in Single Turn 2 | 1 2 Gunslinging . | . . Exploded 1 | . 1 Melee . | . . Uniques/NPCs Destroyed . | . . Combat | -11 -10 -------- Run | Scr Mat Damage Taken 976 | 77 899 Core 250 | . 250 Absorbed by Shields . | . . Core Remaining (%) 100 | 100 . Volleys Fired 41 | 7 34 Largest 2 | 2 2 Hottest 50 | 40 50 Shots Fired 69 | 14 55 Gun 63 | 14 49 Cannon . | . . Launcher 6 | . 6 Special . | . . Kinetic 63 | 14 49 Thermal . | . . Explosive 6 | . 6 Electromagnetic . | . . Robot Hit Streak 5 | 2 5 Robot Miss Streak 4 | 3 4 Penetration Max . | . . Secondary Targets 1 | . 1 Max Gunslinging Chain 1 | . 1 Shots Hit Robots 30 | 6 24 Core Hits 19 | 3 16 Critical Kills . | . . Critical Parts Destroyed . | . . Critical Strikes . | . . Melee Attacks . | . . Impact . | . . Slashing . | . . Piercing . | . . Sneak Attacks . | . . Combat Hostiles . | . . Follow-up Attacks . | . . Damage Inflicted 536 | 84 452 Guns 280 | 84 196 Cannons . | . . Explosions 256 | . 256 Melee . | . . Ramming . | . . Kinetic 280 | 84 196 Thermal . | . . Explosive 256 | . 256 Electromagnetic . | . . Impact . | . . Slashing . | . . Piercing . | . . Highest Corruption . | . . Average Corruption . | . . Corruption Purged . | . . Corruption Blocked . | . . Overload Shots . | . . Overflow Damage . | . . Projectiles . | . . Explosions . | . . Melee . | . . Knockbacks . | . . Impact . | . . Kinetic . | . . Secondary . | . . Self-Inflicted Damage . | . . Shots . | . . Rammed . | . . Targets Rammed . | . . Kicked . | . . Crushed . | . . Highest Temperature 32 | 6 32 Average Temperature 11 | 6 12 Received Heat Transfer 426 | 42 384 Siege Activations . | . . Robots Corrupted . | . . Combat Hostiles . | . . Parts Fried . | . . Impact Corruptions . | . . Robots Melted . | . . Combat Hostiles . | . . Parts Melted . | . . Heat Transferred . | . . Parts Sabotaged . | . . Parts Stolen . | . . Parts Stripped . | . . Power Chain Reactions . | . . Missiles Intercepted . | . . Alert | -11 -10 ------- Run | Scr Mat Peak Influence 260 | 25 260 Initial 16 | . 16 Average 46 | 7 49 Maximum Alert Level 1 | . 1 Low Security (%) 90 | 100 89 Level 1 9 | . 10 Level 2 . | . . Level 3 . | . . Level 4 . | . . Level 5 . | . . High Security . | . . Max Security . | . . Squads Dispatched 1 | . 1 Investigation . | . . Extermination . | . . Reinforcement 1 | . 1 Assault . | . . Garrison . | . . Intercept . | . . Searches Triggered . | . . Construction Impeded . | . . Haulers Reinforced . | . . Active Scanning Responses . | . . Cargo Convoy Interrupts . | . . Stealth | -11 -10 --------- Run | Scr Mat Distress Signals . | . . Communications Jammed . | . . Distress Signals . | . . Times Spotted 15 | 1 14 Peak Tracking Total 4 | 1 4 Tactical Retreats 1 | . 1 Traps | -11 -10 ------- Run | Scr Mat Traps Triggered . | . . Indirectly . | . . Trap Hack Attempts . | . . Triggered . | . . Disarmed . | . . Reprogrammed . | . . Reused . | . . Traps Extracted . | . . Installed . | . . Triggered . | . . Machines | -11 -10 ---------- Run | Scr Mat Machines Disabled 1 | . 1 Max in Single Turn 1 | . 1 Machines Sabotaged . | . . Garrisons Compromised . | . . Overloaded Fab Kills . | . . Hacking | -11 -10 --------- Run | Scr Mat Machines Accessed 1 | . 1 Terminals . | . . Fabricators . | . . Repair Stations . | . . Recycling Units 1 | . 1 Scanalyzers . | . . Garrison Access . | . . Total Hacks 1 | . 1 Successful 1 | . 1 Failed . | . . Catastrophic . | . . Database Lockouts . | . . Manual . | . . Terminals . | . . Fabricators . | . . Repair Stations . | . . Recycling Units 1 | . 1 Scanalyzers . | . . Garrison Access . | . . Terminal Hacks . | . . Fabricator Hacks . | . . Repair Station Hacks . | . . Recycling Unit Hacks 1 | . 1 Recycle Component 1 | . 1 Scanalyzer . | . . Garrison Access Hacks . | . . Unauthorized Hacks . | . . Terminals . | . . Fabricators . | . . Repair Stations . | . . Recycling Units . | . . Scanalyzers . | . . Garrison Access . | . . Data Cores Recovered . | . . Used . | . . Hacking Detections 1 | . 1 Full Trace Events . | . . Feedback Events . | . . Feedback Blocked . | . . Robot Schematics Acquired . | . . Robots Built . | . . Authchips . | . . Time . | . . Total Robot Build Rating . | . . Part Schematics Acquired . | . . Parts Built . | . . Authchips . | . . Time . | . . Total Part Build Rating . | . . Parts Repaired . | . . Time . | . . Parts Recycled 1 | . 1 Recycled Matter . | . . Retrieved Matter . | . . Retrieved Components . | . . Parts Scanalyzed . | . . Part Schematics Acquired . | . . Parts Damaged . | . . Bothacking | -11 -10 ------------ Run | Scr Mat Used RIF Installer . | . . Robots Hacked . | . . Non-combat . | . . Combat . | . . Robot Hacks Applied . | . . Relay Couplers Released . | . . Fabnet Peak Effective % . | . . Robots Rewired . | . . Allies Hacked . | . . Hacks Repelled . | . . Allies | -11 -10 -------- Run | Scr Mat Total Allies . | . . Largest Group . | . . Highest-Rated Group . | . . Highest-Rated Ally . | . . Total Orders . | . . Ally Attacks . | . . Total Damage . | . . Kills . | . . Allies Corrupted . | . . Allies Melted . | . . Intel | -11 -10 ------- Run | Scr Mat Robot Analysis Total . | . . Derelict Logs Recovered . | . . Drone Launches . | . . Drone Recoveries . | . . Exploration | -11 -10 ------------- Run | Scr Mat Turns Passed 1855 | 131 1724 Spaces Moved 500 | 133 367 Core 139 | 34 105 Treads 41 | . 41 Legs 85 | . 85 Wheels 220 | 99 121 Hover 15 | . 15 Flight . | . . Fastest Speed 50 | 50 80 Average Speed 342 | 72 440 Slowest Speed 1550 | 80 1550 Overloaded Moves . | . . Propulsion Burnouts . | . . Robots Hopped . | . . Cave-ins Triggered . | . . Exploration Rate (%) 21 | 7 36 Regions Visited 1 Branch Regions . Pre-discovered Areas . | . . Known Exits Taken . | . . Unknown Exits Taken 1 | 1 . Scrap Searched . | . . Spaces Dug . | . . Terrain Destroyed 41 | . 41 Melee . | . . Projectile . | . . AOE 41 | . 41 Terrain Rammed . | . . Walls Destroyed . | . . Machines Disabled . | . . Actions | -11 -10 --------- Run | Scr Mat Total 585 | 154 431 Wait . | . . Move 499 | 132 367 Hop . | . . Pick Up 27 | 10 17 Fast Attach . | . . Attach 12 | 5 7 Detach . | . . Swap 1 | . 1 Drop 5 | . 5 Fire 41 | 7 34 Melee . | . . Ram . | . . Kick . | . . Crush . | . . Escape Stasis . | . . Rewire . | . . Trap . | . . Miscellaneous . | . . Route ------- -11/Scrapyard -10/Materials (discovered 1 exit: [*Mat]) History --------- Turn | Location | Event 2 | -11/Scrapyard | Met Revision 17 71 | -11/Scrapyard | Discovered new exit (range 8) 132 | -11/Scrapyard | Entered Materials 303 | -10/Materials | Build established: Mutant 313 | -10/Materials | Lost 3 parts (2n1w) 873 | -10/Materials | Lost 3 parts (1p1n1w) 1795 | -10/Materials | Discovered new exit (range 11) 1841 | -10/Materials | Core integrity fell below 50% 1847 | -10/Materials | Core integrity fell below 20% 1856 | -10/Materials | Destroyed by G-34 Mercenary with Small Laser Last Messages --------------- Acquired Heat Sink. K-01 Serf cleans the Fusion Modulator. Acquired Lgt. Ion Engine. K-01 Serf cleans the Fusion Modulator. Acquired Lgt. Ion Engine. K-01 Serf cleans the Fusion Modulator. Acquired Lgt. Treads. Different forms of propulsion may not be used simultaneously, Aluminum Leg automatically deactivated. K-01 Serf cleans the Terminal. Acquired Hcp. Storage Unit. K-01 Serf cleans the Terminal. EXIT=FOUND K-01 Serf cleans the Atomic Centrifuge. Critical hit (Burn: +37). K-01 Serf cleans the Atomic Centrifuge. Lgt. Assault Rifle destroyed. Atomic Centrifuge disabled. K-01 Serf collects debris. [Achievement: First Step to Greatness] Map ----- +----------------------------------------------------+ | ??????????????????????????????????????????? | | ??????????????????????????????????????????? | | ??????????????????????????????????????????? | | ??????????????????????????????????????????? | | ??????????????????????????????????????????? | | ??????????????????????????????????????????? | | ??????????????????????????????????????????? | | ??????????????????????????????????????????? | | ???????????????????????? ???????????????? | | ???????????????????????# ???????????????? | | ???????????????????????#a ???????????????? | | ??????????????????? ??# #??????????????? | | ??????????????????? ??# #??????????????? | | ???????????????????? ?# #??????????????? | | ????????????????????#+## #####??????????? | | ????????????????????? ???????????? | | ??????????????????????